bitfinex/quotes_BTCUSD_20230110
["timestamp","ask_amount","ask_price","bid_price","bid_amount"]
[1673359386311,0.84984708,17258.0,17254.0,4.57592772]
[1673359386585,0.014,17255.0,17254.0,2.64822789]
[1673359386823,0.84995708,17258.0,17255.0,1.3]
[1673359387075,0.84995708,17258.0,17256.0,1.159016]
[1673359387328,0.84995708,17258.0,17256.0,1.39669389]
[1673359387583,0.84995708,17258.0,17256.0,1.159016]
[1673359387584,0.86395708,17258.0,17256.0,1.159016]
[1673359387840,0.84995708,17258.0,17256.0,1.159016]
[1673359388364,0.54718533,17257.0,17256.0,1.159016]
[1673359388620,0.90835633,17257.0,17256.0,1.159016]
[1673359388883,0.90835633,17257.0,17255.0,0.78689328]
[1673359389366,0.361171,17256.0,17255.0,0.82686928]
[1673359389369,0.361171,17256.0,17255.0,1.36638728]
[1673359389862,0.84718533,17257.0,17255.0,1.36638728]
[1673359390122,0.361171,17256.0,17255.0,1.40638728]
[1673359390364,0.361171,17256.0,17255.0,1.159035]
[1673359390622,0.361171,17256.0,17255.0,0.579518]
[1673359390876,1.03456721,17256.0,17255.0,0.619518]
[1673359392677,0.67339621,17256.0,17255.0,0.619518]
[1673359392977,0.375171,17256.0,17255.0,1.19906]
[1673359393184,0.014,17256.0,17255.0,1.19906]
[1673359393477,0.014,17256.0,17255.0,2.19906]
[1673359394481,0.014,17256.0,17255.0,1.19906]
[1673359394482,0.55993213,17256.0,17255.0,1.19906]
[1673359394999,0.92110313,17256.0,17255.0,1.19906]
[1673359396287,0.55993213,17256.0,17255.0,1.19906]
[1673359396809,0.92110313,17256.0,17255.0,1.19906]
[1673359397046,0.92110313,17256.0,17255.0,0.619542]
[1673359397561,0.92110313,17256.0,17255.0,0.04]
[1673359399605,0.76127117,17256.0,17255.0,0.07346865]
[1673359399849,1.1907198,17256.0,17255.0,0.07746865]
[1673359400368,1.1917198,17256.0,17255.0,0.07746865]
[1673359401388,1.36464901,17256.0,17255.0,0.07746865]
[1673359401651,1.1917198,17256.0,17255.0,0.07746865]
[1673359402157,1.1907198,17256.0,17255.0,0.07746865]
[1673359402405,1.1917198,17256.0,17255.0,0.07746865]
[1673359403947,1.36464901,17256.0,17255.0,0.07746865]
[1673359404492,3.10364774,17256.0,17255.0,0.07746865]
[1673359405468,2.93071853,17256.0,17255.0,0.07746865]
[1673359405710,3.19028825,17256.0,17255.0,0.07746865]
[1673359406447,3.53654246,17256.0,17255.0,0.07735436]
[1673359406702,3.01512092,17256.0,17255.0,0.07735436]
[1673359407196,2.84199366,17256.0,17255.0,0.07735436]
[1673359407468,3.24222905,17256.0,17255.0,0.07735436]
[1673359407735,3.24222905,17256.0,17252.0,0.64320884]
[1673359407736,0.02374432,17254.0,17252.0,0.64320884]
[1673359408006,0.361171,17253.0,17252.0,0.64320884]
[1673359408762,1.22746984,17253.0,17252.0,0.64320884]
[1673359409019,1.22746984,17253.0,17252.0,0.67520884]
[1673359409289,1.22746984,17253.0,17252.0,0.64320884]
[1673359409565,1.23746984,17253.0,17252.0,0.67520884]
[1673359411357,0.93746984,17253.0,17252.0,0.67520884]
[1673359411617,0.93746984,17253.0,17252.0,1.25485084]
[1673359411902,0.57629884,17253.0,17252.0,0.611642]
[1673359412189,0.57629884,17253.0,17252.0,0.6106159]
[1673359412452,0.93746984,17253.0,17252.0,0.60906244]
[1673359413933,0.57629884,17253.0,17252.0,0.60906244]
[1673359414193,0.93746984,17253.0,17252.0,0.60906244]
[1673359416756,0.57629884,17253.0,17252.0,0.60906244]
[1673359417008,0.93746984,17253.0,17252.0,0.60906244]
[1673359417286,0.371171,17253.0,17252.0,0.60906244]
[1673359417562,0.371171,17253.0,17252.0,0.82452468]
[1673359417563,0.01,17253.0,17252.0,0.82452468]
[1673359418086,0.01,17253.0,17252.0,1.82452468]
[1673359418346,0.01,17253.0,17252.0,2.70416668]
[1673359418616,0.01,17253.0,17252.0,3.30416668]
[1673359419122,0.01,17253.0,17252.0,1.40416668]
[1673359420462,0.01,17253.0,17252.0,2.75697584]
[1673359420743,0.01,17253.0,17252.0,2.86887584]
[1673359420998,0.01,17253.0,17252.0,3.22949684]
[1673359421453,0.01,17253.0,17252.0,2.86887584]
[1673359421699,0.01,17253.0,17252.0,2.77168768]
[1673359421976,0.01,17253.0,17252.0,2.41106668]
[1673359422236,0.01,17253.0,17252.0,2.29916668]
[1673359422752,0.01,17253.0,17252.0,1.39916668]
[1673359423009,0.67369997,17253.0,17252.0,1.18370444]
[1673359423814,1.03487097,17253.0,17252.0,0.60406244]
[1673359424024,2.19443771,17253.0,17252.0,0.60406244]
[1673359424525,1.03487097,17253.0,17252.0,0.60406244]
[1673359425287,1.83327163,17253.0,17252.0,0.60406244]
[1673359425533,2.19444263,17253.0,17252.0,0.60406244]
[1673359426092,2.36771465,17253.0,17252.0,0.60406244]
[1673359426889,2.19444263,17253.0,17252.0,1.18370444]
[1673359427137,1.03487097,17253.0,17252.0,1.18370444]
[1673359427949,0.67369997,17253.0,17252.0,1.18370444]
[1673359428709,1.03487097,17253.0,17252.0,0.60406244]
[1673359429223,2.19439137,17253.0,17252.0,0.60406244]
[1673359430242,2.36766339,17253.0,17252.0,0.60406244]
[1673359434170,2.62758037,17253.0,17252.0,0.60406244]
[1673359435993,2.97412441,17253.0,17252.0,0.60406244]
[1673359436245,2.80085239,17253.0,17252.0,0.60406244]
[1673359436487,2.80085239,17253.0,17252.0,0.60314144]
[1673359436804,2.80085239,17253.0,17252.0,0.02349944]
[1673359439522,2.80085239,17253.0,17252.0,0.60314144]
[1673359441034,2.6279989,17253.0,17252.0,0.60314144]
[1673359441286,2.2668279,17253.0,17252.0,0.60314144]
[1673359441534,2.6279989,17253.0,17252.0,0.60314144]
[1673359442299,2.36808192,17253.0,17252.0,1.18278344]
[1673359442557,2.36808192,17253.0,17252.0,1.454421]
[1673359442558,1.1695204,17253.0,17252.0,1.454421]
[1673359442839,0.01,17253.0,17252.0,1.454421]
[1673359443596,0.01,17253.0,17252.0,2.29846934]
[1673359443862,0.01,17253.0,17252.0,3.56865873]
[1673359444433,0.01,17253.0,17252.0,3.53894963]
[1673359444690,0.00320955,17253.0,17252.0,3.55755562]
[1673359444957,0.00320955,17253.0,17252.0,3.12510643]
[1673359445253,0.00320955,17253.0,17252.0,4.2550397]
[1673359445525,0.71814546,17259.0,17252.0,11.75502438]
[1673359445811,0.71814546,17259.0,17257.0,1.6]
[1673359446073,0.71814546,17259.0,17258.0,0.59815989]
[1673359446329,0.71814546,17259.0,17258.0,1.519364]
[1673359446602,0.71814546,17259.0,17258.0,1.158882]
[1673359447365,0.6660307,17259.0,17258.0,1.158882]
[1673359447369,0.6730307,17259.0,17258.0,1.264882]
[1673359447637,0.63787098,17259.0,17258.0,1.264882]
[1673359448138,0.008,17259.0,17258.0,1.264882]
[1673359449423,0.62102879,17259.0,17258.0,1.264882]
[1673359449695,0.98119979,17259.0,17258.0,0.106]
[1673359450696,2.14042622,17259.0,17258.0,0.106]
[1673359450947,0.98119979,17259.0,17258.0,0.106]
[1673359451207,2.31412417,17259.0,17258.0,0.106]
[1673359451995,2.14043362,17259.0,17258.0,0.106]
[1673359452364,0.98119979,17259.0,17258.0,0.106]
[1673359452891,0.007,17259.0,17258.0,1.264882]
[1673359453136,0.007,17259.0,17258.0,1.51773929]
[1673359455625,0.007,17259.0,17258.0,1.264882]
[1673359455875,1.06136292,17259.0,17258.0,1.264882]
[1673359456389,1.06136292,17259.0,17258.0,0.685441]
[1673359456638,1.06136292,17259.0,17258.0,0.106]
[1673359456891,1.05636292,17259.0,17258.0,0.106]
[1673359457439,1.05636292,17259.0,17258.0,0.685441]
[1673359459402,0.002,17259.0,17258.0,0.685441]
[1673359459917,0.002,17259.0,17258.0,2.04003455]
[1673359460177,0.002,17259.0,17258.0,3.63137555]
[1673359460430,0.85736496,17261.0,17259.0,0.63079535]
[1673359460686,0.85736496,17261.0,17259.0,1.48957035]
[1673359461726,0.85736496,17261.0,17260.0,0.27927518]
[1673359461975,0.85936496,17261.0,17260.0,0.85864918]
[1673359462553,0.26820722,17261.0,17260.0,0.85864918]
[1673359462731,0.26820722,17261.0,17260.0,2.45864918]
[1673359463241,0.26620722,17261.0,17260.0,1.85864918]
[1673359463504,0.30120722,17261.0,17260.0,1.44002318]
[1673359464824,0.30120722,17261.0,17260.0,1.160748]
[1673359465107,1.248988,17261.0,17260.0,0.581374]
[1673359465371,1.248988,17261.0,17260.0,0.002]
[1673359465621,0.887817,17261.0,17260.0,0.002]
[1673359465873,1.248988,17261.0,17260.0,0.002]
[1673359466117,0.887817,17261.0,17260.0,0.002]
[1673359466848,1.248988,17261.0,17260.0,0.002]
[1673359467356,0.887817,17261.0,17260.0,0.002]
[1673359467608,1.248988,17261.0,17260.0,0.002]
[1673359468626,0.887817,17261.0,17260.0,0.002]
[1673359469129,0.887817,17261.0,17260.0,0.581374]
[1673359469379,0.30120722,17261.0,17260.0,1.09176666]
[1673359469631,0.30120722,17261.0,17260.0,1.54536277]
[1673359469877,0.035,17261.0,17260.0,1.54536277]
[1673359470133,0.035,17261.0,17260.0,2.54536277]
[1673359470881,0.035,17261.0,17260.0,2.160748]
[1673359471136,0.035,17261.0,17260.0,1.160748]
[1673359471652,0.035,17261.0,17260.0,6.51378082]
[1673359471906,0.035,17261.0,17260.0,7.51378082]
[1673359472157,0.035,17261.0,17260.0,6.51378082]
[1673359472401,0.03,17261.0,17260.0,6.51378082]
[1673359472653,0.03,17261.0,17260.0,7.51378082]
[1673359472895,0.03,17261.0,17260.0,6.51378082]
[1673359473161,0.03,17261.0,17260.0,7.51378082]
[1673359474714,0.03,17261.0,17260.0,6.51378082]
[1673359475211,0.03,17261.0,17260.0,7.51378082]
[1673359475688,0.03,17261.0,17260.0,8.18971866]
[1673359475941,0.03,17261.0,17260.0,7.84976829]
[1673359476188,0.03,17261.0,17260.0,7.49915703]
[1673359476442,0.03,17261.0,17260.0,8.2473179]
[1673359476694,0.03,17261.0,17260.0,9.2077409]
[1673359477451,0.03,17261.0,17260.0,8.60766031]
[1673359477763,0.03,17261.0,17260.0,8.15958003]
[1673359478203,0.03,17261.0,17260.0,7.85958003]
[1673359478700,0.03,17261.0,17260.0,8.30769723]
[1673359478999,0.03,17261.0,17260.0,8.15958003]
[1673359479717,0.03,17261.0,17260.0,6.85958003]
[1673359479974,0.03,17261.0,17260.0,6.49915703]
[1673359480234,0.60874545,17261.0,17260.0,6.03422421]
[1673359481995,0.60874545,17261.0,17260.0,5.95819247]
[1673359482249,0.03,17261.0,17260.0,5.95819247]
[1673359483871,0.03,17261.0,17260.0,5.88222247]
[1673359484404,0.01992715,17261.0,17260.0,5.88222247]
[1673359485168,0.01992715,17261.0,17260.0,6.15904184]
[1673359485647,0.01992715,17261.0,17260.0,6.51946484]
[1673359485905,0.01992715,17261.0,17260.0,6.15904184]
[1673359488248,0.01992715,17261.0,17260.0,5.88222247]
[1673359488498,0.67599474,17261.0,17260.0,5.88222247]
[1673359489598,0.01992715,17261.0,17260.0,5.88222247]
[1673359491367,0.01992715,17261.0,17260.0,6.24750193]
[1673359498802,0.01992715,17261.0,17260.0,7.69323712]
[1673359499068,0.01992715,17261.0,17260.0,7.86616867]
[1673359499329,0.01992715,17261.0,17260.0,7.86594429]
[1673359499600,0.01992715,17261.0,17260.0,7.42043348]
[1673359500121,0.01992715,17261.0,17260.0,6.42043348]
[1673359500373,0.01992715,17261.0,17260.0,7.72043348]
[1673359500627,0.01992715,17261.0,17260.0,9.34996841]
[1673359500921,0.01992715,17261.0,17260.0,10.33996264]
[1673359501157,0.01992715,17261.0,17260.0,9.84659705]
[1673359501158,0.01019644,17261.0,17260.0,9.84659705]
[1673359501413,0.01335742,17262.0,17260.0,9.88491078]
[1673359501670,0.01335742,17262.0,17261.0,2.57220304]
[1673359501941,0.01059542,17262.0,17261.0,3.06888644]
[1673359502467,0.01059542,17262.0,17261.0,3.88452393]
[1673359502731,0.01059542,17262.0,17261.0,4.15104087]
[1673359502984,0.01059542,17262.0,17261.0,3.53904123]
[1673359503245,0.01059542,17262.0,17261.0,3.91278404]
[1673359503564,0.01359542,17262.0,17261.0,3.67704123]
[1673359504900,0.01359542,17262.0,17261.0,4.49448685]
[1673359505673,0.01359542,17262.0,17261.0,4.45617312]
[1673359506227,0.01359542,17262.0,17261.0,4.80121825]
[1673359506488,0.01359542,17262.0,17261.0,4.45617312]
[1673359507261,0.01359542,17262.0,17261.0,4.34427312]
[1673359507761,0.01359542,17262.0,17261.0,4.6893545]
[1673359507770,0.01359542,17262.0,17261.0,4.8012545]
[1673359508534,0.01359542,17262.0,17261.0,5.05998748]
[1673359508865,0.01359542,17262.0,17261.0,4.62816268]
[1673359509594,0.01359542,17262.0,17261.0,4.8012545]
[1673359510139,0.01359542,17262.0,17261.0,5.15905795]
[1673359510394,0.01359542,17262.0,17261.0,4.98589525]
[1673359510651,0.01359542,17262.0,17261.0,4.6280918]
[1673359511163,0.01359542,17262.0,17261.0,4.45617312]
[1673359511661,0.01359542,17262.0,17261.0,4.02433206]
[1673359511662,0.00479846,17262.0,17261.0,4.02433206]
[1673359511667,0.02020855,17263.0,17261.0,5.81279236]
[1673359511921,0.01839636,17265.0,17262.0,3.79051408]
[1673359512194,0.01839636,17265.0,17264.0,2.40267852]
[1673359512461,0.01839636,17265.0,17264.0,4.15259503]
[1673359512720,0.01839636,17265.0,17264.0,4.19762628]
[1673359512721,0.01795436,17265.0,17264.0,4.19762628]
[1673359512982,0.27929055,17265.0,17264.0,4.08582628]
[1673359513520,0.28218055,17265.0,17264.0,3.62439712]
[1673359513770,0.28218055,17265.0,17264.0,3.45219236]
[1673359514073,0.28218055,17265.0,17264.0,3.730504]
[1673359514585,0.28218055,17265.0,17264.0,3.70645608]
[1673359514842,0.28218055,17265.0,17264.0,3.12075608]
[1673359514843,0.28518055,17265.0,17264.0,3.12075608]
[1673359516453,0.28518055,17265.0,17264.0,3.12081608]
[1673359518261,0.28518055,17265.0,17264.0,3.42081608]
[1673359518823,0.28518055,17265.0,17264.0,3.12081608]
[1673359519389,0.28518055,17265.0,17264.0,4.02081608]
[1673359519660,0.28518055,17265.0,17264.0,3.744864]
[1673359519918,0.28518055,17265.0,17264.0,4.30920846]
[1673359520458,0.28518055,17265.0,17264.0,4.67192354]
[1673359520982,0.02384436,17265.0,17264.0,4.30920846]
[1673359521249,0.01160977,17265.0,17264.0,4.30920846]
[1673359521757,0.01160977,17265.0,17264.0,4.48141322]
[1673359522055,0.01160977,17265.0,17264.0,4.30920846]
[1673359522563,0.01160977,17265.0,17264.0,4.30914846]
[1673359522832,0.01160977,17265.0,17264.0,4.48135322]
[1673359523107,0.01105276,17265.0,17264.0,4.30914846]
[1673359523390,0.01105276,17265.0,17264.0,4.29065127]
[1673359523672,0.01105276,17265.0,17264.0,4.63100142]
[1673359524188,0.01105276,17265.0,17264.0,4.29065127]
[1673359524978,0.01105276,17265.0,17264.0,4.63088415]
[1673359525231,0.01105276,17265.0,17264.0,4.29065127]
[1673359525486,0.01105276,17265.0,17264.0,3.69065127]
[1673359525742,1.53099922,17268.0,17265.0,0.50114879]
[1673359526010,1.28896922,17268.0,17265.0,1.31803268]
[1673359526258,1.28896922,17268.0,17266.0,1.0]
[1673359526515,1.28896922,17268.0,17266.0,1.81684789]
[1673359526780,0.58999972,17268.0,17266.0,2.39601989]
[1673359527317,0.59099972,17268.0,17266.0,2.958342]
[1673359527575,0.58999972,17268.0,17267.0,0.2]
[1673359527826,0.59999972,17268.0,17267.0,1.158278]
[1673359528086,0.59999972,17268.0,17267.0,1.458278]
[1673359528357,0.59999972,17268.0,17267.0,2.25042816]
[1673359528649,0.58999972,17268.0,17267.0,1.95042816]
[1673359528907,0.61599972,17268.0,17267.0,1.59417516]
[1673359530234,0.61599972,17268.0,17267.0,2.25442516]
[1673359530986,0.61599972,17268.0,17267.0,1.95442516]
[1673359531452,0.61599972,17268.0,17267.0,1.59417516]
[1673359532233,0.61599972,17268.0,17267.0,1.01503616]
[1673359532763,0.61599972,17268.0,17267.0,0.43589716]
[1673359534893,0.61599972,17268.0,17267.0,0.004]
[1673359536216,0.0297456,17267.0,17266.0,3.03435527]
[1673359536778,0.0297456,17267.0,17266.0,3.12390442]
[1673359537030,0.0297456,17267.0,17266.0,2.608295]
[1673359537546,0.0447456,17267.0,17266.0,3.08923266]
[1673359538127,0.0447456,17267.0,17266.0,2.608295]
[1673359538642,0.0447456,17267.0,17266.0,3.02691862]
[1673359538905,0.0447456,17267.0,17266.0,2.608295]
[1673359540218,0.0447456,17267.0,17266.0,2.95592044]
[1673359540680,0.0447456,17267.0,17266.0,1.95592044]
[1673359542458,0.0447456,17267.0,17266.0,2.208295]
[1673359542718,0.0447456,17267.0,17266.0,3.51139508]
[1673359542968,0.0447456,17267.0,17266.0,3.76968587]
[1673359543230,0.0447456,17267.0,17266.0,3.51139508]
[1673359543978,0.0447456,17267.0,17266.0,3.76968587]
[1673359544266,0.30887726,17267.0,17266.0,3.76968587]
[1673359544490,0.30887726,17267.0,17266.0,3.51139508]
[1673359545012,0.30887726,17267.0,17266.0,3.83290965]
[1673359545257,0.30887726,17267.0,17266.0,4.14438225]
[1673359545258,0.0447456,17267.0,17266.0,4.14438225]
[1673359545544,0.0447456,17267.0,17266.0,4.6534052]
[1673359545759,0.0447456,17267.0,17266.0,4.48070389]
[1673359546263,1.23035513,17270.0,17266.0,4.48086032]
[1673359546513,0.56415216,17270.0,17268.0,0.6]
[1673359546809,0.56415216,17270.0,17269.0,1.158144]
[1673359547294,0.56404216,17270.0,17269.0,1.158144]
[1673359547539,0.56404216,17270.0,17269.0,2.158144]
[1673359547805,0.26404216,17270.0,17269.0,2.158144]
[1673359548334,0.28504216,17270.0,17269.0,2.158144]
[1673359548598,0.26404216,17270.0,17269.0,2.158144]
[1673359548852,0.28504216,17270.0,17269.0,2.168144]
[1673359549603,0.28504216,17270.0,17269.0,2.1175688]
[1673359553395,2.21136719,17270.0,17269.0,2.1175688]
[1673359553632,2.57253819,17270.0,17269.0,2.1175688]
[1673359553890,2.21136719,17270.0,17269.0,2.1175688]
[1673359554145,2.57253819,17270.0,17269.0,1.1175688]
[1673359554432,2.21136719,17270.0,17269.0,0.5384968]
[1673359554690,2.83245517,17270.0,17269.0,0.01]
[1673359554945,2.94395517,17270.0,17269.0,0.01]
[1673359555952,2.39884764,17270.0,17269.0,0.01]
[1673359555957,0.8793109,17270.0,17269.0,0.589072]
[1673359556208,0.8793109,17270.0,17269.0,1.589072]
[1673359556469,0.8793109,17270.0,17269.0,0.589072]
[1673359556720,2.21135816,17270.0,17269.0,0.589072]
[1673359556975,2.57252916,17270.0,17269.0,0.589072]
[1673359557234,0.8793109,17270.0,17269.0,0.589072]
[1673359557740,0.8793109,17270.0,17269.0,0.65522332]
[1673359557978,2.21137418,17270.0,17269.0,0.65522332]
[1673359558221,2.57254518,17270.0,17269.0,0.65522332]
[1673359558482,2.21137418,17270.0,17269.0,0.65522332]
[1673359558736,2.21137418,17270.0,17269.0,0.07615132]
[1673359558737,2.83246216,17270.0,17269.0,0.07615132]
[1673359558997,2.47129116,17270.0,17269.0,0.07615132]
[1673359559259,3.94534637,17270.0,17269.0,0.07615132]
[1673359559771,3.59880233,17270.0,17269.0,0.07615132]
[1673359560023,3.94571949,17270.0,17269.0,0.07615132]
[1673359561035,3.11785221,17270.0,17269.0,0.07615132]
[1673359562319,2.94437691,17270.0,17269.0,0.07615132]
[1673359562554,2.94437691,17270.0,17269.0,0.00033251]
[1673359562803,2.68419649,17270.0,17269.0,0.00033251]
[1673359563064,0.56724055,17269.0,17268.0,1.02253233]
[1673359563395,0.26724055,17269.0,17268.0,1.60161533]
[1673359563584,0.26724055,17269.0,17268.0,2.50161533]
[1673359563837,0.26724055,17269.0,17268.0,2.86184033]
[1673359564086,0.26724055,17269.0,17268.0,2.56184033]
[1673359564344,0.2623232,17270.0,17268.0,2.48593233]
[1673359564609,0.30624055,17269.0,17268.0,2.13570733]
[1673359564847,0.30624055,17269.0,17268.0,3.13570733]
[1673359565345,0.2623232,17270.0,17268.0,3.12570733]
[1673359565601,0.3013232,17270.0,17268.0,3.13570733]
[1673359565894,0.88695306,17270.0,17268.0,2.52570733]
[1673359566109,1.06039492,17270.0,17268.0,2.52570733]
[1673359566602,1.06039492,17270.0,17268.0,2.158183]
[1673359566879,1.06039492,17270.0,17268.0,0.01]
[1673359566880,2.66344337,17269.0,17268.0,0.01]
[1673359567119,2.88362379,17269.0,17267.0,0.579111]
[1673359567385,1.36403143,17269.0,17268.0,0.01]
[1673359567635,2.52250257,17269.0,17267.0,0.579111]
[1673359567880,0.661171,17268.0,17267.0,0.579111]
[1673359568132,0.3,17268.0,17267.0,0.579111]
[1673359568402,1.13385101,17269.0,17267.0,1.01172136]
[1673359568642,1.10385101,17269.0,17267.0,1.01172136]
[1673359568902,0.031,17268.0,17267.0,1.01672136]
[1673359569157,0.031,17268.0,17267.0,2.59586036]
[1673359569414,0.031,17268.0,17267.0,3.19586036]
[1673359569937,0.26724055,17269.0,17267.0,4.02379914]
[1673359570183,0.26724055,17269.0,17267.0,3.99781083]
[1673359570438,0.29824055,17269.0,17268.0,0.360227]
[1673359570689,0.29824055,17269.0,17268.0,1.15821]
[1673359571016,0.26724055,17269.0,17268.0,1.15821]
[1673359571209,0.29824055,17269.0,17268.0,1.15821]
[1673359571472,0.26724055,17269.0,17268.0,1.15821]
[1673359571720,0.29724055,17269.0,17268.0,1.16821]
[1673359571972,0.29724055,17269.0,17268.0,1.56100741]
[1673359573561,0.03,17269.0,17268.0,1.56100741]
[1673359575141,0.68757757,17270.0,17269.0,0.17]
[1673359575395,2.14596741,17270.0,17269.0,0.17]
[1673359575653,2.76731883,17270.0,17269.0,0.17]
[1673359575915,2.40614783,17270.0,17269.0,0.17]
[1673359576423,2.76731883,17270.0,17269.0,0.17]
[1673359576427,2.94279413,17270.0,17269.0,0.18]
[1673359576953,2.84570314,17270.0,17269.0,0.18]
[1673359577202,3.23304711,17270.0,17269.0,0.18]
[1673359578492,2.84572961,17270.0,17269.0,0.18]
[1673359578793,3.08258345,17270.0,17269.0,0.18]
[1673359579056,4.35532178,17270.0,17269.0,0.18]
[1673359579844,3.92325114,17270.0,17269.0,0.18]
[1673359580392,3.93421791,17270.0,17269.0,0.18]
[1673359580895,4.23953512,17270.0,17269.0,0.18]
[1673359581163,3.80746448,17270.0,17269.0,0.18]
[1673359581449,4.23953512,17270.0,17269.0,0.18]
[1673359581716,3.80746448,17270.0,17269.0,0.18]
[1673359582220,4.50544113,17270.0,17269.0,0.18]
[1673359582772,4.93913503,17270.0,17269.0,0.18]
[1673359583070,4.36009703,17270.0,17269.0,0.18]
[1673359583852,3.92640313,17270.0,17269.0,0.18]
[1673359584403,4.36003552,17270.0,17269.0,0.18]
[1673359584915,3.12656298,17270.0,17269.0,0.18]
[1673359586194,3.56019537,17270.0,17269.0,0.18]
[1673359586442,3.90149873,17270.0,17269.0,0.18]
[1673359587463,3.90148679,17270.0,17269.0,0.18]
[1673359587965,3.55462701,17270.0,17269.0,0.18]
[1673359588224,3.69201928,17270.0,17269.0,0.13]
[1673359588471,3.00205597,17270.0,17269.0,0.13]
[1673359588716,3.65979176,17270.0,17269.0,0.13]
[1673359589499,3.00205597,17270.0,17269.0,0.13]
[1673359589991,3.6713125,17270.0,17269.0,0.13]
[1673359590246,3.6693125,17270.0,17269.0,0.12]
[1673359590507,3.7993125,17270.0,17269.0,0.125]
[1673359591273,3.13005597,17270.0,17269.0,0.125]
[1673359591529,3.72746782,17270.0,17269.0,0.125]
[1673359593089,3.72810558,17270.0,17269.0,0.125]
[1673359594053,4.1615858,17270.0,17269.0,0.125]
[1673359594299,4.50836331,17270.0,17269.0,0.125]
[1673359594559,3.92932531,17270.0,17269.0,0.125]
[1673359595058,3.15447652,17270.0,17269.0,0.125]
[1673359595323,3.58795674,17270.0,17269.0,0.125]
[1673359595627,3.15447652,17270.0,17269.0,0.125]
[1673359596315,2.89438796,17270.0,17269.0,0.125]
[1673359596568,3.15448579,17270.0,17269.0,0.125]
[1673359598594,2.68111082,17270.0,17269.0,0.46509135]
[1673359598848,2.42101299,17270.0,17269.0,0.46509135]
[1673359599103,2.05984199,17270.0,17269.0,1.04416335]
[1673359599627,2.05984199,17270.0,17269.0,1.64416335]
[1673359599879,0.72804961,17270.0,17269.0,2.64416335]
[1673359600135,0.72804961,17270.0,17269.0,3.22323535]
[1673359600923,0.13063776,17270.0,17269.0,3.22323535]
[1673359601687,0.13063776,17270.0,17269.0,3.55007628]
[1673359602450,0.13063776,17270.0,17269.0,3.66197628]
[1673359602737,0.13063776,17270.0,17269.0,3.33513535]
[1673359602999,0.13063776,17270.0,17269.0,3.66145456]
[1673359603266,0.13063776,17270.0,17269.0,3.33513535]
[1673359605025,0.13063776,17270.0,17269.0,3.22323535]
[1673359609690,0.00063776,17270.0,17269.0,3.21823535]
[1673359609909,0.07563776,17270.0,17269.0,3.22523535]
[1673359610156,0.00063776,17270.0,17269.0,3.21823535]
[1673359610409,0.07563776,17270.0,17269.0,3.22523535]
[1673359612840,0.07555335,17270.0,17269.0,3.22523535]
[1673359613096,0.07548589,17270.0,17269.0,3.51038302]
[1673359613359,0.07548589,17270.0,17269.0,4.33444962]
[1673359615346,0.07548589,17270.0,17269.0,4.0092106]
[1673359615839,0.07548589,17270.0,17269.0,4.33340333]
[1673359616088,0.07548589,17270.0,17269.0,4.0092106]
[1673359616816,0.07548589,17270.0,17269.0,3.7092106]
[1673359617057,0.07548589,17270.0,17269.0,4.0092106]
[1673359617818,0.07548589,17270.0,17269.0,3.7092106]
[1673359618095,0.07548589,17270.0,17269.0,4.0092106]
[1673359618330,0.07548589,17270.0,17269.0,3.7092106]
[1673359619611,0.07548589,17270.0,17269.0,4.0092106]
[1673359620766,0.07548589,17270.0,17269.0,4.33322252]
[1673359621022,0.07548589,17270.0,17269.0,4.0092106]
[1673359621802,0.07332189,17270.0,17269.0,4.33318428]
[1673359622056,0.07332189,17270.0,17269.0,4.33388428]
[1673359622313,0.07332189,17270.0,17269.0,4.52339825]
[1673359622553,0.07332189,17270.0,17269.0,4.64760128]
[1673359622810,0.07332189,17270.0,17269.0,4.4749125]
[1673359623068,0.07332189,17270.0,17269.0,4.4760045]
[1673359623570,0.07332189,17270.0,17269.0,4.26619946]
[1673359623829,0.07332189,17270.0,17269.0,4.69748954]
[1673359624607,0.00048589,17270.0,17269.0,4.69048954]
[1673359625118,0.01148589,17270.0,17269.0,4.51780076]
[1673359625386,0.00048589,17270.0,17269.0,4.51780076]
[1673359625645,0.00048589,17270.0,17269.0,4.75648954]
[1673359625646,0.01148589,17270.0,17269.0,4.75648954]
[1673359626120,0.01148589,17270.0,17269.0,4.58380076]
[1673359626444,0.01148589,17270.0,17269.0,4.75648954]
[1673359626962,0.01148589,17270.0,17269.0,4.83089746]
[1673359626963,0.00767352,17270.0,17269.0,4.83089746]
[1673359627215,0.00718763,17270.0,17269.0,5.00259641]
[1673359627668,0.00718763,17270.0,17269.0,5.36506998]
[1673359628188,0.00718763,17270.0,17269.0,5.19313513]
[1673359628440,0.00718763,17270.0,17269.0,4.83066156]
[1673359628706,0.00718763,17270.0,17269.0,5.00259641]
[1673359628978,0.00718763,17270.0,17269.0,4.94230255]
[1673359629221,0.00718763,17270.0,17269.0,5.53625022]
[1673359629489,0.00300493,17270.0,17269.0,5.60687511]
[1673359629745,0.00300493,17270.0,17269.0,6.06813804]
[1673359630794,0.00300493,17270.0,17269.0,5.72321454]
[1673359631048,0.00300493,17270.0,17269.0,5.29207978]
[1673359631579,0.00300493,17270.0,17269.0,5.7232005]
[1673359631826,0.0179186,17271.0,17270.0,0.3]
[1673359632083,0.0179186,17271.0,17270.0,3.54297784]
[1673359632326,0.0179186,17271.0,17270.0,4.20315384]
[1673359632872,0.0179186,17271.0,17270.0,4.437497]
[1673359633362,0.0179186,17271.0,17270.0,4.438497]
[1673359633622,0.0217058,17276.0,17271.0,0.3]
[1673359633916,0.0217058,17276.0,17275.0,1.2]
[1673359634172,0.0217058,17276.0,17275.0,2.096672]
[1673359634417,0.0217058,17276.0,17275.0,1.157742]
[1673359634919,0.2058958,17276.0,17273.0,1.2]
[1673359635235,0.361171,17275.0,17274.0,0.578898]
[1673359635501,0.5058958,17276.0,17274.0,0.578898]
[1673359636014,0.3,17275.0,17274.0,0.578898]
[1673359636268,0.661171,17275.0,17272.0,0.90086897]
[1673359636537,0.661171,17275.0,17273.0,0.34727379]
[1673359636538,0.527971,17274.0,17273.0,0.34727379]
[1673359636822,0.527971,17274.0,17272.0,0.578964]
[1673359637064,0.87290262,17274.0,17272.0,0.578964]
[1673359637303,0.87290262,17274.0,17272.0,0.90891416]
[1673359637304,0.70610262,17274.0,17272.0,0.90891416]
[1673359637549,0.3,17275.0,17272.0,1.48788516]
[1673359637831,0.95920001,17275.0,17273.0,0.38585189]
[1673359638070,0.95920001,17275.0,17273.0,1.62352978]
[1673359638335,0.95920001,17275.0,17274.0,0.578904]